[Event "Early-Titled-Tuesday-Blitz-January-23-2024"]
[Site "Chess.com"]
[Date "2024.01.23"]
[Round "10"]
[White "Smiechu"]
[Black "Saraisitave"]
[Result "1-0"]
[WhiteElo "2473"]
[BlackElo "2291"]
[TimeControl "180+1"]
[EndTime "9:56:21 PST"]
[Termination "Smiechu won on time"]

1. e4 {[%clk 0:03:00.9]} 1... c5 {[%clk 0:03:00]} 2. Nf3 {[%clk 0:03:01.2]} 2...
Nc6 {[%clk 0:03:00.1]} 3. d4 {[%clk 0:03:01.9]} 3... cxd4 {[%clk 0:03:00.5]} 4.
Nxd4 {[%clk 0:03:02.6]} 4... e5 {[%clk 0:03:00.9]} 5. Nb5 {[%clk 0:03:01.8]}
5... a6 {[%clk 0:03:00.6]} 6. Nd6+ {[%clk 0:03:00.3]} 6... Bxd6 {[%clk
0:03:00.7]} 7. Qxd6 {[%clk 0:03:01]} 7... Qf6 {[%clk 0:03:01]} 8. Qd1 {[%clk
0:03:00.7]} 8... Qg6 {[%clk 0:03:00.8]} 9. Nc3 {[%clk 0:02:58.7]} 9... d6 {[%clk
0:02:59.7]} 10. Be3 {[%clk 0:02:58.5]} 10... Nge7 {[%clk 0:02:59.2]} 11. Qd2
{[%clk 0:02:57]} 11... O-O {[%clk 0:02:58.8]} 12. O-O-O {[%clk 0:02:56.9]} 12...
Rd8 {[%clk 0:02:53.4]} 13. f3 {[%clk 0:02:54.1]} 13... f5 {[%clk 0:02:49]} 14.
Bc4+ {[%clk 0:02:40]} 14... Kh8 {[%clk 0:02:48.3]} 15. h4 {[%clk 0:02:40.1]}
15... f4 {[%clk 0:02:47.3]} 16. Bb6 {[%clk 0:02:37.8]} 16... Rd7 {[%clk
0:02:33.7]} 17. h5 {[%clk 0:02:37.9]} 17... Qh6 {[%clk 0:02:33.2]} 18. g4 {[%clk
0:02:32.9]} 18... Nd8 {[%clk 0:01:35.6]} 19. g5 {[%clk 0:02:12.8]} 19... Qxg5
{[%clk 0:01:34]} 20. Rdg1 {[%clk 0:02:12.9]} 20... Qf6 {[%clk 0:01:33.3]} 21.
Bf2 {[%clk 0:02:06.5]} 21... h6 {[%clk 0:01:29.8]} 22. Bh4 {[%clk 0:02:03]}
22... Qf8 {[%clk 0:01:28.9]} 23. Bxe7 {[%clk 0:01:48.3]} 23... Qxe7 {[%clk
0:01:28.4]} 24. Nd5 {[%clk 0:01:48]} 24... Qe8 {[%clk 0:01:20.3]} 25. Nb6 {[%clk
0:01:41.4]} 25... Rb8 {[%clk 0:01:19.8]} 26. Nxd7 {[%clk 0:01:40.1]} 26... Bxd7
{[%clk 0:01:10]} 27. Qxd6 {[%clk 0:01:38.5]} 27... Nc6 {[%clk 0:01:10.2]} 28.
Qg6 {[%clk 0:01:32.7]} 28... Qxg6 {[%clk 0:01:08.5]} 29. Rxg6 {[%clk 0:01:32.8]}
29... Nd4 {[%clk 0:01:03.5]} 30. Rf1 {[%clk 0:01:17.8]} 30... Rc8 {[%clk
0:01:01.4]} 31. Bb3 {[%clk 0:01:10.7]} 31... Be8 {[%clk 0:00:59.4]} 32. Rb6
{[%clk 0:00:56.8]} 32... Bxh5 {[%clk 0:00:53.2]} 33. Rxb7 {[%clk 0:00:54.6]}
33... Bxf3 {[%clk 0:00:53.1]} 34. c3 {[%clk 0:00:39.6]} 34... Bxe4 {[%clk
0:00:38]} 35. Re7 {[%clk 0:00:38.8]} 35... Nc6 {[%clk 0:00:29.9]} 36. Rd7 {[%clk
0:00:30.5]} 36... Bf5 {[%clk 0:00:12.8]} 37. Rf7 {[%clk 0:00:29.7]} 37... g6
{[%clk 0:00:13]} 38. Rh1 {[%clk 0:00:25.6]} 38... h5 {[%clk 0:00:11.2]} 39. Rd1
{[%clk 0:00:25.1]} 39... f3 {[%clk 0:00:09.8]} 40. Bd5 {[%clk 0:00:24.1]} 1-0

[Event "Early-Titled-Tuesday-Blitz-January-23-2024"]
[Site "Chess.com"]
[Date "2024.01.23"]
[Round "10"]
[White "karinachess1"]
[Black "Makswolf200817"]
[Result "1-0"]
[WhiteElo "2627"]
[BlackElo "2728"]
[TimeControl "180+1"]
[EndTime "9:56:23 PST"]
[Termination "karinachess1 won by resignation"]

1. d4 {[%clk 0:03:00.9]} 1... Nf6 {[%clk 0:02:59.4]} 2. c4 {[%clk 0:03:01]} 2...
e6 {[%clk 0:02:59.4]} 3. Nc3 {[%clk 0:03:01.1]} 3... Bb4 {[%clk 0:02:56.8]} 4.
a3 {[%clk 0:03:01.3]} 4... Bxc3+ {[%clk 0:02:56.1]} 5. bxc3 {[%clk 0:03:02.2]}
5... b6 {[%clk 0:02:52.9]} 6. e3 {[%clk 0:02:59.7]} 6... Bb7 {[%clk 0:02:52.5]}
7. f3 {[%clk 0:03:00.2]} 7... d6 {[%clk 0:02:52]} 8. Bd3 {[%clk 0:03:00.6]} 8...
c5 {[%clk 0:02:48.2]} 9. Ne2 {[%clk 0:03:00.6]} 9... Nc6 {[%clk 0:02:48]} 10.
O-O {[%clk 0:03:00.8]} 10... Qe7 {[%clk 0:02:47.6]} 11. e4 {[%clk 0:02:59.4]}
11... e5 {[%clk 0:02:47.4]} 12. d5 {[%clk 0:02:49.6]} 12... Na5 {[%clk
0:02:47.2]} 13. Ng3 {[%clk 0:02:50.1]} 13... g6 {[%clk 0:02:44.4]} 14. Qe2
{[%clk 0:02:41.8]} 14... h5 {[%clk 0:02:38.8]} 15. Bg5 {[%clk 0:02:40.8]} 15...
h4 {[%clk 0:02:28.9]} 16. Nh1 {[%clk 0:02:31.8]} 16... Rh5 {[%clk 0:02:29.5]}
17. f4 {[%clk 0:01:50.4]} 17... exf4 {[%clk 0:02:24.8]} 18. Bxf4 {[%clk
0:01:49.7]} 18... O-O-O {[%clk 0:02:20.4]} 19. Nf2 {[%clk 0:01:42.9]} 19... Re8
{[%clk 0:02:14.1]} 20. Nh3 {[%clk 0:01:23.8]} 20... Nd7 {[%clk 0:02:12.1]} 21.
Rae1 {[%clk 0:01:06.8]} 21... Kc7 {[%clk 0:02:05.9]} 22. Qf3 {[%clk 0:01:00.2]}
22... Qf6 {[%clk 0:01:33.1]} 23. Nf2 {[%clk 0:00:50.4]} 23... Qxc3 {[%clk
0:01:16]} 24. Ng4 {[%clk 0:00:38.4]} 24... Nb3 {[%clk 0:01:10.4]} 25. Bxd6+
{[%clk 0:00:26.9]} 25... Kxd6 {[%clk 0:00:43.9]} 26. Qxf7 {[%clk 0:00:27.1]}
26... Rhh8 {[%clk 0:00:43.2]} 27. e5+ {[%clk 0:00:23.6]} 27... Kc7 {[%clk
0:00:41]} 28. Nf6 {[%clk 0:00:17.9]} 28... Rd8 {[%clk 0:00:33.1]} 29. e6 {[%clk
0:00:11.6]} 29... Rhf8 {[%clk 0:00:29.2]} 30. Qe7 {[%clk 0:00:05.5]} 30... Rxf6
{[%clk 0:00:26.8]} 31. d6+ {[%clk 0:00:02.3]} 31... Kc8 {[%clk 0:00:15.2]} 32.
exd7+ {[%clk 0:00:02.8]} 32... Rxd7 {[%clk 0:00:15.8]} 33. Qxf6 {[%clk 0:00:02]}
33... Qxd3 {[%clk 0:00:14.5]} 34. Re8+ {[%clk 0:00:01.7]} 1-0

[Event "Early-Titled-Tuesday-Blitz-January-23-2024"]
[Site "Chess.com"]
[Date "2024.01.23"]
[Round "10"]
[White "Flawless_Fighter"]
[Black "bazar-wokzal"]
[Result "0-1"]
[WhiteElo "2716"]
[BlackElo "2587"]
[TimeControl "180+1"]
[EndTime "9:56:23 PST"]
[Termination "bazar-wokzal won by resignation"]

1. e4 {[%clk 0:03:00.9]} 1... Nc6 {[%clk 0:02:59.6]} 2. Nc3 {[%clk 0:02:56.5]}
2... Nf6 {[%clk 0:02:59.4]} 3. d4 {[%clk 0:02:54.5]} 3... d5 {[%clk 0:02:59.2]}
4. e5 {[%clk 0:02:54.4]} 4... Nd7 {[%clk 0:02:59.1]} 5. f4 {[%clk 0:02:52.8]}
5... Nb6 {[%clk 0:02:58.9]} 6. Nf3 {[%clk 0:02:52.7]} 6... Bg4 {[%clk
0:02:58.3]} 7. Be3 {[%clk 0:02:49.9]} 7... e6 {[%clk 0:02:56.8]} 8. h3 {[%clk
0:02:49]} 8... Bxf3 {[%clk 0:02:56.6]} 9. Qxf3 {[%clk 0:02:49.9]} 9... Bb4
{[%clk 0:02:56.4]} 10. Bd3 {[%clk 0:02:47.3]} 10... Na4 {[%clk 0:02:52.6]} 11.
Bd2 {[%clk 0:02:24.8]} 11... Nxb2 {[%clk 0:02:37]} 12. Bb5 {[%clk 0:02:07]}
12... O-O {[%clk 0:02:30.2]} 13. Bxc6 {[%clk 0:02:00.3]} 13... bxc6 {[%clk
0:02:30.3]} 14. Rb1 {[%clk 0:02:00.6]} 14... Bxc3 {[%clk 0:02:27.5]} 15. Bxc3
{[%clk 0:01:55.3]} 15... Nc4 {[%clk 0:02:25]} 16. O-O {[%clk 0:01:55.2]} 16...
Rb8 {[%clk 0:02:24.4]} 17. Rb3 {[%clk 0:01:51.3]} 17... Rb6 {[%clk 0:02:03.8]}
18. f5 {[%clk 0:01:49.5]} 18... exf5 {[%clk 0:02:02.7]} 19. Bb4 {[%clk
0:01:40.2]} 19... Rxb4 {[%clk 0:01:49.5]} 20. Rxb4 {[%clk 0:01:39.9]} 20... Nd2
{[%clk 0:01:49.8]} 21. Qxf5 {[%clk 0:01:40.6]} 21... Nxf1 {[%clk 0:01:49.9]} 22.
Qxf1 {[%clk 0:01:36.1]} 22... c5 {[%clk 0:01:47.9]} 23. dxc5 {[%clk 0:01:25.5]}
23... Qe7 {[%clk 0:01:47.7]} 24. Qf2 {[%clk 0:01:12.5]} 24... Qxe5 {[%clk
0:01:46.6]} 25. c6 {[%clk 0:01:10.8]} 25... Re8 {[%clk 0:01:38.2]} 26. Rf4
{[%clk 0:00:37.3]} 26... Qe1+ {[%clk 0:01:31]} 27. Qxe1 {[%clk 0:00:35.4]} 27...
Rxe1+ {[%clk 0:01:31.9]} 28. Kh2 {[%clk 0:00:33.9]} 28... Re6 {[%clk 0:01:30.9]}
29. Ra4 {[%clk 0:00:31.1]} 29... Rxc6 {[%clk 0:01:29.7]} 30. Rxa7 {[%clk
0:00:31.7]} 30... g6 {[%clk 0:01:29.8]} 31. Ra8+ {[%clk 0:00:31.9]} 31... Kg7
{[%clk 0:01:29.5]} 32. Rd8 {[%clk 0:00:27.1]} 32... Rxc2 {[%clk 0:01:28.9]} 33.
Rxd5 {[%clk 0:00:23.5]} 33... Rxa2 {[%clk 0:01:28.7]} 34. Rc5 {[%clk 0:00:24.2]}
34... Ra7 {[%clk 0:01:27.9]} 35. g4 {[%clk 0:00:24.8]} 35... Kf6 {[%clk
0:01:27]} 36. Kg3 {[%clk 0:00:21.8]} 36... Ke6 {[%clk 0:01:27]} 37. Kf4 {[%clk
0:00:22.3]} 37... Kd6 {[%clk 0:01:27.2]} 38. Rc3 {[%clk 0:00:21.9]} 38... c5
{[%clk 0:01:24.7]} 39. Kg5 {[%clk 0:00:21.7]} 39... Kd5 {[%clk 0:01:24.2]} 40.
Kh6 {[%clk 0:00:16.7]} 40... c4 {[%clk 0:01:24.3]} 41. Kxh7 {[%clk 0:00:16.2]}
41... Kd4 {[%clk 0:01:24.7]} 42. Rc1 {[%clk 0:00:16.6]} 42... c3 {[%clk
0:01:25.1]} 43. Re1 {[%clk 0:00:09.2]} 43... c2 {[%clk 0:01:24.6]} 44. Kg7
{[%clk 0:00:07.8]} 44... g5 {[%clk 0:01:08.4]} 45. Kf6 {[%clk 0:00:07.2]} 45...
Ra5 {[%clk 0:01:05.8]} 46. Kxf7 {[%clk 0:00:05.2]} 46... Kd3 {[%clk 0:01:05.6]}
47. Kg6 {[%clk 0:00:04]} 47... Kd2 {[%clk 0:01:05.8]} 48. Rh1 {[%clk 0:00:04.4]}
48... c1=Q {[%clk 0:00:59.4]} 49. Rxc1 {[%clk 0:00:04.8]} 49... Kxc1 {[%clk
0:00:59.8]} 50. Kh5 {[%clk 0:00:05.7]} 50... Kd2 {[%clk 0:01:00]} 51. h4 {[%clk
0:00:05.8]} 51... Ke3 {[%clk 0:00:57.3]} 52. hxg5 {[%clk 0:00:05.1]} 52... Kf4
{[%clk 0:00:57.5]} 0-1

[Event "Early-Titled-Tuesday-Blitz-January-23-2024"]
[Site "Chess.com"]
[Date "2024.01.23"]
[Round "10"]
[White "SirStrateg"]
[Black "FairChess_on_YouTube"]
[Result "0-1"]
[WhiteElo "2668"]
[BlackElo "3080"]
[TimeControl "180+1"]
[EndTime "9:56:24 PST"]
[Termination "FairChess_on_YouTube won by resignation"]

1. d4 {[%clk 0:02:19.6]} 1... Nf6 {[%clk 0:02:44.4]} 2. Bg5 {[%clk 0:02:19.7]}
2... g6 {[%clk 0:02:40.1]} 3. Bxf6 {[%clk 0:02:19.8]} 3... exf6 {[%clk 0:02:41]}
4. Nd2 {[%clk 0:02:14.2]} 4... f5 {[%clk 0:02:40.8]} 5. e3 {[%clk 0:02:13.4]}
5... d5 {[%clk 0:02:39.8]} 6. Ne2 {[%clk 0:02:09.7]} 6... Nd7 {[%clk 0:02:39.4]}
7. g3 {[%clk 0:02:09.2]} 7... Nf6 {[%clk 0:02:37.6]} 8. Bg2 {[%clk 0:02:09.8]}
8... c6 {[%clk 0:02:37.9]} 9. c4 {[%clk 0:01:58]} 9... dxc4 {[%clk 0:02:34.6]}
10. Nxc4 {[%clk 0:01:58]} 10... Be6 {[%clk 0:02:35]} 11. Qc2 {[%clk 0:01:49.9]}
11... Bb4+ {[%clk 0:02:28.5]} 12. Nd2 {[%clk 0:01:43]} 12... Bd5 {[%clk
0:02:26.2]} 13. O-O {[%clk 0:01:36.9]} 13... O-O {[%clk 0:02:09.3]} 14. a3
{[%clk 0:01:33.6]} 14... Bxd2 {[%clk 0:02:08.5]} 15. Qxd2 {[%clk 0:01:33.5]}
15... Bxg2 {[%clk 0:02:07.8]} 16. Kxg2 {[%clk 0:01:33.6]} 16... Qd5+ {[%clk
0:02:08.5]} 17. Kg1 {[%clk 0:01:32.8]} 17... Ne4 {[%clk 0:02:08.3]} 18. Qd1
{[%clk 0:00:52.8]} 18... Ng5 {[%clk 0:02:07.6]} 19. Nf4 {[%clk 0:00:53]} 19...
Qe4 {[%clk 0:02:07.9]} 20. Ng2 {[%clk 0:00:45.4]} 20... Rae8 {[%clk 0:01:53]}
21. f3 {[%clk 0:00:39.7]} 21... Qd5 {[%clk 0:01:50.7]} 22. Rc1 {[%clk
0:00:38.1]} 22... Re7 {[%clk 0:01:44]} 23. Rc5 {[%clk 0:00:36.8]} 23... Qd7
{[%clk 0:01:43.6]} 24. Rc3 {[%clk 0:00:27.7]} 24... Rfe8 {[%clk 0:01:42.9]} 25.
Qd2 {[%clk 0:00:22.7]} 25... Qd5 {[%clk 0:01:41.2]} 26. Qd1 {[%clk 0:00:20.6]}
26... h5 {[%clk 0:01:40.5]} 27. h4 {[%clk 0:00:19.8]} 27... Ne6 {[%clk
0:01:39.5]} 28. Kf2 {[%clk 0:00:18.8]} 28... Qd6 {[%clk 0:01:37.3]} 29. Qb3
{[%clk 0:00:18.2]} 29... c5 {[%clk 0:01:26.4]} 30. d5 {[%clk 0:00:14.5]} 30...
Nd4 {[%clk 0:01:20.8]} 31. Qd1 {[%clk 0:00:12.8]} 31... Nb5 {[%clk 0:01:18]} 32.
Rd3 {[%clk 0:00:12.7]} 32... c4 {[%clk 0:01:14.5]} 33. Rd2 {[%clk 0:00:13.2]}
33... Qb6 {[%clk 0:01:10.7]} 34. Re1 {[%clk 0:00:11.3]} 34... Nd6 {[%clk
0:01:09.9]} 35. Qc2 {[%clk 0:00:09.3]} 35... Re5 {[%clk 0:01:10]} 36. Rd4 {[%clk
0:00:08.7]} 36... Qc5 {[%clk 0:01:07.8]} 37. Nf4 {[%clk 0:00:07.6]} 37... Rxe3
{[%clk 0:00:57.7]} 38. Rxe3 {[%clk 0:00:05.7]} 38... Qxd4 {[%clk 0:00:58.1]} 39.
Qc3 {[%clk 0:00:04]} 39... Qb6 {[%clk 0:00:58.7]} 40. b4 {[%clk 0:00:03.3]}
40... Nb5 {[%clk 0:00:51.5]} 41. Ne6 {[%clk 0:00:02.6]} 41... Nxc3 {[%clk
0:00:24.8]} 0-1

[Event "Early-Titled-Tuesday-Blitz-January-23-2024"]
[Site "Chess.com"]
[Date "2024.01.23"]
[Round "10"]
[White "Zgorl"]
[Black "Tejas_Rama"]
[Result "1-0"]
[WhiteElo "2539"]
[BlackElo "2626"]
[TimeControl "180+1"]
[EndTime "9:56:24 PST"]
[Termination "Zgorl won by resignation"]

1. Nf3 {[%clk 0:03:00.9]} 1... Nf6 {[%clk 0:02:57.1]} 2. g3 {[%clk 0:03:00.3]}
2... d5 {[%clk 0:02:57]} 3. Bg2 {[%clk 0:03:00.2]} 3... c5 {[%clk 0:02:54.1]} 4.
O-O {[%clk 0:02:59.8]} 4... g6 {[%clk 0:02:50.8]} 5. c4 {[%clk 0:02:54.1]} 5...
Bg7 {[%clk 0:02:41.5]} 6. cxd5 {[%clk 0:02:47.6]} 6... Nxd5 {[%clk 0:02:42.4]}
7. Nc3 {[%clk 0:02:47.7]} 7... O-O {[%clk 0:02:41.7]} 8. Nxd5 {[%clk 0:02:44.1]}
8... Qxd5 {[%clk 0:02:41.3]} 9. d3 {[%clk 0:02:45]} 9... Nc6 {[%clk 0:02:39.3]}
10. Be3 {[%clk 0:02:43.2]} 10... Qd6 {[%clk 0:02:39.6]} 11. Rc1 {[%clk
0:02:40.3]} 11... Nd4 {[%clk 0:02:22.6]} 12. Bxd4 {[%clk 0:02:36.9]} 12... cxd4
{[%clk 0:02:22.1]} 13. Nd2 {[%clk 0:02:35.4]} 13... Be6 {[%clk 0:02:15.5]} 14.
Qa4 {[%clk 0:02:19.9]} 14... a6 {[%clk 0:01:57.5]} 15. Ne4 {[%clk 0:02:09.2]}
15... Qe5 {[%clk 0:01:46.4]} 16. Rc5 {[%clk 0:02:05.3]} 16... Qb8 {[%clk
0:01:38.9]} 17. Rfc1 {[%clk 0:01:58.7]} 17... b5 {[%clk 0:01:22.6]} 18. Qa5
{[%clk 0:01:56.6]} 18... Ra7 {[%clk 0:01:09.3]} 19. Rc6 {[%clk 0:01:25.3]} 19...
Bd5 {[%clk 0:00:41.1]} 20. Rxa6 {[%clk 0:01:21.6]} 20... Rxa6 {[%clk 0:00:39.9]}
21. Qxa6 {[%clk 0:01:22.5]} 21... Qa8 {[%clk 0:00:32.5]} 22. Qxa8 {[%clk
0:00:48.3]} 22... Rxa8 {[%clk 0:00:31.4]} 23. a3 {[%clk 0:00:48.6]} 23... e6
{[%clk 0:00:26.4]} 24. Nd6 {[%clk 0:00:41.8]} 24... Bxg2 {[%clk 0:00:23.2]} 25.
Kxg2 {[%clk 0:00:41.4]} 25... b4 {[%clk 0:00:22.6]} 26. axb4 {[%clk 0:00:39.8]}
26... Bf8 {[%clk 0:00:20.5]} 27. Rc8 {[%clk 0:00:26]} 27... Ra2 {[%clk
0:00:20.5]} 28. Nc4 {[%clk 0:00:20.2]} 28... Kg7 {[%clk 0:00:19.5]} 29. b5
{[%clk 0:00:19.8]} 29... Ra4 {[%clk 0:00:17.6]} 30. b6 {[%clk 0:00:19.2]} 30...
Rb4 {[%clk 0:00:18.1]} 31. Rc7 {[%clk 0:00:19.5]} 31... Kf6 {[%clk 0:00:10.6]}
32. b7 {[%clk 0:00:18.5]} 32... Be7 {[%clk 0:00:11.2]} 33. f4 {[%clk 0:00:08.5]}
33... Bd8 {[%clk 0:00:08.1]} 34. Rd7 {[%clk 0:00:08.7]} 34... Be7 {[%clk
0:00:06.5]} 35. g4 {[%clk 0:00:08.1]} 35... h6 {[%clk 0:00:06]} 36. h4 {[%clk
0:00:08]} 36... g5 {[%clk 0:00:05.8]} 37. fxg5+ {[%clk 0:00:08.1]} 37... hxg5
{[%clk 0:00:06.5]} 38. hxg5+ {[%clk 0:00:08.7]} 38... Kxg5 {[%clk 0:00:06.3]}
39. Rxe7 {[%clk 0:00:09.2]} 1-0

[Event "Early-Titled-Tuesday-Blitz-January-23-2024"]
[Site "Chess.com"]
[Date "2024.01.23"]
[Round "10"]
[White "TregubovP"]
[Black "FGHSMN"]
[Result "1/2-1/2"]
[WhiteElo "2681"]
[BlackElo "2965"]
[TimeControl "180+1"]
[EndTime "9:56:25 PST"]
[Termination "Game drawn by repetition"]

1. e4 {[%clk 0:03:00.9]} 1... e5 {[%clk 0:02:55.6]} 2. Nf3 {[%clk 0:03:00.7]}
2... Nc6 {[%clk 0:02:56]} 3. Bc4 {[%clk 0:02:57.2]} 3... f5 {[%clk 0:02:56]} 4.
d3 {[%clk 0:02:52]} 4... Nf6 {[%clk 0:02:51.3]} 5. Ng5 {[%clk 0:02:34.1]} 5...
Bc5 {[%clk 0:02:39.5]} 6. Nf7 {[%clk 0:02:27.4]} 6... Qe7 {[%clk 0:02:39.9]} 7.
Nxh8 {[%clk 0:02:27.4]} 7... f4 {[%clk 0:02:17.1]} 8. Nc3 {[%clk 0:02:23.1]}
8... d6 {[%clk 0:02:14.3]} 9. Nd5 {[%clk 0:02:07.4]} 9... Nxd5 {[%clk
0:02:11.4]} 10. Qh5+ {[%clk 0:01:54.2]} 10... g6 {[%clk 0:01:54.3]} 11. Nxg6
{[%clk 0:01:53.9]} 11... hxg6 {[%clk 0:01:51.3]} 12. Qxg6+ {[%clk 0:01:53.8]}
12... Kd8 {[%clk 0:01:45.7]} 13. Qg8+ {[%clk 0:01:50]} 13... Kd7 {[%clk
0:01:44.5]} 14. Bxd5 {[%clk 0:01:41.3]} 14... Nd4 {[%clk 0:01:44.4]} 15. Bb3
{[%clk 0:01:27.2]} 15... Qh4 {[%clk 0:01:15.5]} 16. Rf1 {[%clk 0:00:37.5]} 16...
Kc6 {[%clk 0:01:02.4]} 17. c3 {[%clk 0:00:27.8]} 17... Nxb3 {[%clk 0:00:32.8]}
18. Qd5+ {[%clk 0:00:26.5]} 18... Kd7 {[%clk 0:00:32.3]} 19. axb3 {[%clk
0:00:24.1]} 19... c6 {[%clk 0:00:24.5]} 20. Qf7+ {[%clk 0:00:23.7]} 20... Kd8
{[%clk 0:00:25]} 21. d4 {[%clk 0:00:23.1]} 21... exd4 {[%clk 0:00:19.2]} 22.
Bxf4 {[%clk 0:00:20.2]} 22... Bd7 {[%clk 0:00:19.7]} 23. O-O-O {[%clk
0:00:13.8]} 23... dxc3 {[%clk 0:00:13.7]} 24. Bxd6 {[%clk 0:00:11.5]} 24...
cxb2+ {[%clk 0:00:13.9]} 25. Kb1 {[%clk 0:00:11.3]} 25... Qxe4+ {[%clk
0:00:14.1]} 26. Ka2 {[%clk 0:00:08.7]} 26... b1=Q+ {[%clk 0:00:13.5]} 27. Rxb1
{[%clk 0:00:08.9]} 27... Bxd6 {[%clk 0:00:14.2]} 28. Rfd1 {[%clk 0:00:06.6]}
28... Kc7 {[%clk 0:00:14.2]} 29. Rxd6 {[%clk 0:00:05.5]} 29... Qe2+ {[%clk
0:00:13.8]} 30. Rb2 {[%clk 0:00:05.6]} 30... Qa6+ {[%clk 0:00:13.9]} 31. Kb1
{[%clk 0:00:06.2]} 31... Qf1+ {[%clk 0:00:13.8]} 32. Ka2 {[%clk 0:00:06.4]}
32... Qa6+ {[%clk 0:00:14]} 33. Kb1 {[%clk 0:00:06.6]} 33... Qf1+ {[%clk
0:00:12.9]} 34. Ka2 {[%clk 0:00:04.6]} 34... Qa6+ {[%clk 0:00:11.4]} 1/2-1/2

[Event "Early-Titled-Tuesday-Blitz-January-23-2024"]
[Site "Chess.com"]
[Date "2024.01.23"]
[Round "10"]
[White "MikaelyanArman"]
[Black "Sebastian"]
[Result "0-1"]
[WhiteElo "2847"]
[BlackElo "3010"]
[TimeControl "180+1"]
[EndTime "9:56:26 PST"]
[Termination "Sebastian won by resignation"]

1. d4 {[%clk 0:03:00.9]} 1... Nf6 {[%clk 0:02:59.6]} 2. c4 {[%clk 0:03:01.2]}
2... e6 {[%clk 0:02:59.3]} 3. Nf3 {[%clk 0:03:01.7]} 3... d5 {[%clk 0:02:58.9]}
4. Nc3 {[%clk 0:03:01.8]} 4... Bb4 {[%clk 0:02:53.7]} 5. Bg5 {[%clk 0:02:55]}
5... h6 {[%clk 0:02:53.2]} 6. Bxf6 {[%clk 0:02:54.6]} 6... Qxf6 {[%clk
0:02:53.9]} 7. e3 {[%clk 0:02:55.2]} 7... O-O {[%clk 0:02:53]} 8. Rc1 {[%clk
0:02:55.4]} 8... dxc4 {[%clk 0:02:52]} 9. Bxc4 {[%clk 0:02:56.3]} 9... c5 {[%clk
0:02:52.2]} 10. O-O {[%clk 0:02:52.3]} 10... cxd4 {[%clk 0:02:50.8]} 11. Ne4
{[%clk 0:02:52.8]} 11... Qe7 {[%clk 0:02:45.5]} 12. a3 {[%clk 0:02:51.3]} 12...
Ba5 {[%clk 0:02:44.2]} 13. exd4 {[%clk 0:02:51.8]} 13... Rd8 {[%clk 0:02:42.2]}
14. Ba2 {[%clk 0:02:35.8]} 14... Bd7 {[%clk 0:02:38.5]} 15. b4 {[%clk
0:02:25.7]} 15... Bb6 {[%clk 0:02:38.1]} 16. Bb1 {[%clk 0:01:51.9]} 16... Bc6
{[%clk 0:02:26.1]} 17. Qc2 {[%clk 0:01:50]} 17... Nd7 {[%clk 0:02:20.3]} 18. Ne5
{[%clk 0:01:06.8]} 18... Bxe4 {[%clk 0:02:09.8]} 19. Qxe4 {[%clk 0:01:06.1]}
19... Nf6 {[%clk 0:02:10.5]} 20. Qe2 {[%clk 0:00:46.9]} 20... Rxd4 {[%clk
0:01:58]} 21. Nf3 {[%clk 0:00:46.3]} 21... Rd6 {[%clk 0:01:49.9]} 22. h3 {[%clk
0:00:45.7]} 22... Rad8 {[%clk 0:01:48.7]} 23. Kh1 {[%clk 0:00:46.3]} 23... g6
{[%clk 0:01:34.7]} 24. Rc4 {[%clk 0:00:44.8]} 24... Kg7 {[%clk 0:01:32]} 25. Qb2
{[%clk 0:00:43.3]} 25... Rd1 {[%clk 0:01:24.7]} 26. Qe2 {[%clk 0:00:40.6]} 26...
Rxf1+ {[%clk 0:01:22]} 27. Qxf1 {[%clk 0:00:41.5]} 27... Nd5 {[%clk 0:01:12.1]}
28. Qe2 {[%clk 0:00:39.4]} 28... Qf6 {[%clk 0:01:11.2]} 29. Be4 {[%clk
0:00:18.2]} 29... Nc3 {[%clk 0:00:39.6]} 30. Qc2 {[%clk 0:00:18.4]} 30... Nd1
{[%clk 0:00:32.7]} 31. Bxb7 {[%clk 0:00:16.3]} 31... Nxf2+ {[%clk 0:00:32.3]}
32. Kh2 {[%clk 0:00:16.4]} 32... Rd1 {[%clk 0:00:30.7]} 33. Ng1 {[%clk
0:00:11.5]} 33... Qe5+ {[%clk 0:00:29.4]} 34. g3 {[%clk 0:00:11.2]} 34... Qe1
{[%clk 0:00:19.1]} 35. Qc3+ {[%clk 0:00:05.7]} 35... Qxc3 {[%clk 0:00:17.9]} 36.
Rxc3 {[%clk 0:00:06.6]} 36... Rxg1 {[%clk 0:00:15.7]} 37. a4 {[%clk 0:00:04.6]}
37... Rb1 {[%clk 0:00:14.3]} 38. a5 {[%clk 0:00:04.4]} 38... Bd4 {[%clk
0:00:14.2]} 39. Rc7 {[%clk 0:00:04.1]} 39... Rxb4 {[%clk 0:00:12.9]} 40. Bc6
{[%clk 0:00:04.4]} 40... Rb2 {[%clk 0:00:12.6]} 41. Bd7 {[%clk 0:00:04.9]} 41...
Ng4+ {[%clk 0:00:12.3]} 0-1

[Event "Early-Titled-Tuesday-Blitz-January-23-2024"]
[Site "Chess.com"]
[Date "2024.01.23"]
[Round "10"]
[White "nihalsarin"]
[Black "Zhigalko_Sergei"]
[Result "0-1"]
[WhiteElo "3177"]
[BlackElo "2992"]
[TimeControl "180+1"]
[EndTime "9:56:29 PST"]
[Termination "Zhigalko_Sergei won by checkmate"]

1. g4 {[%clk 0:03:00.9]} 1... d5 {[%clk 0:02:59.9]} 2. Bg2 {[%clk 0:03:00]} 2...
c6 {[%clk 0:02:58.2]} 3. g5 {[%clk 0:02:57.4]} 3... e5 {[%clk 0:02:58.2]} 4. d4
{[%clk 0:02:57.2]} 4... Nd7 {[%clk 0:02:51.5]} 5. h4 {[%clk 0:01:37.2]} 5... Bd6
{[%clk 0:02:49]} 6. c4 {[%clk 0:01:36.3]} 6... e4 {[%clk 0:02:41.9]} 7. Nc3
{[%clk 0:01:33.7]} 7... Ne7 {[%clk 0:02:41.7]} 8. Qb3 {[%clk 0:01:26.7]} 8...
O-O {[%clk 0:01:09.8]} 9. cxd5 {[%clk 0:01:26.2]} 9... cxd5 {[%clk 0:01:10.2]}
10. Nxd5 {[%clk 0:01:26.9]} 10... Nxd5 {[%clk 0:01:00.4]} 11. Qxd5 {[%clk
0:01:25.7]} 11... Bb4+ {[%clk 0:01:01.3]} 12. Kf1 {[%clk 0:01:25.4]} 12... Re8
{[%clk 0:00:57.1]} 13. Bxe4 {[%clk 0:01:09.8]} 13... Qc7 {[%clk 0:00:57.1]} 14.
Bd3 {[%clk 0:00:33.2]} 14... Nb6 {[%clk 0:00:48.2]} 15. Qb5 {[%clk 0:00:29.3]}
15... Qe7 {[%clk 0:00:48.8]} 16. Nf3 {[%clk 0:00:28.7]} 16... Bd7 {[%clk
0:00:48]} 17. Qe5 {[%clk 0:00:28.6]} 17... Qf8 {[%clk 0:00:44.7]} 18. Qg3 {[%clk
0:00:25]} 18... Bc6 {[%clk 0:00:42.7]} 19. Rh3 {[%clk 0:00:20.6]} 19... Rad8
{[%clk 0:00:42.3]} 20. Bf4 {[%clk 0:00:19.7]} 20... Nd5 {[%clk 0:00:30.4]} 21.
Be5 {[%clk 0:00:19.6]} 21... Bd6 {[%clk 0:00:18]} 22. h5 {[%clk 0:00:18.3]}
22... Nb4 {[%clk 0:00:18.1]} 23. Bxh7+ {[%clk 0:00:14.9]} 23... Kxh7 {[%clk
0:00:15.6]} 24. g6+ {[%clk 0:00:15.7]} 24... Kg8 {[%clk 0:00:14.2]} 25. gxf7+
{[%clk 0:00:14.8]} 25... Qxf7 {[%clk 0:00:13.3]} 26. Bxd6 {[%clk 0:00:14.9]}
26... Nc2 {[%clk 0:00:05.6]} 27. Ne5 {[%clk 0:00:09]} 27... Qf5 {[%clk
0:00:04.2]} 28. h6 {[%clk 0:00:08.9]} 28... g5 {[%clk 0:00:01.3]} 29. h7+ {[%clk
0:00:09]} 29... Kh8 {[%clk 0:00:01.8]} 30. Rh6 {[%clk 0:00:09.4]} 30... Rxd6
{[%clk 0:00:01.4]} 31. Rxd6 {[%clk 0:00:08.9]} 31... Nxa1 {[%clk 0:00:01.1]} 32.
Rg6 {[%clk 0:00:08.1]} 32... Qb1# {[%clk 0:00:01.2]} 0-1